bitfinex-derivatives/quotes_ETHF0:USTF0_20210406
["timestamp","ask_amount","ask_price","bid_price","bid_amount"]
[1617670016870,73.89994624,2133.5,2133.0,3.83555]
[1617670017271,73.87235,2133.5,2133.0,3.83555]
[1617670018672,2.90695,2133.1,2133.0,3.83555]
[1617670020977,2.90695,2133.1,2133.0,57.88645]
[1617670021176,11.12063734,2133.5,2133.0,57.88645]
[1617670021377,11.12063734,2133.5,2133.0,62.68795]
[1617670021620,11.09305,2133.5,2133.0,8.63705]
[1617670021821,11.09305,2133.5,2133.0,38.63705]
[1617670022008,10.90535,2133.5,2133.0,38.63705]
[1617670022181,10.03155,2133.5,2133.0,38.63705]
[1617670022416,9.74645,2133.5,2133.0,38.63705]
[1617670022785,9.74645,2133.5,2133.4,4.90695]
[1617670022982,9.74645,2133.5,2133.4,34.90695]
[1617670024490,9.74645,2133.5,2133.4,32.90695]
[1617670024690,12.6534,2133.5,2133.4,30.0]
[1617670024991,9.74645,2133.5,2133.4,30.0]
[1617670025391,9.74645,2133.5,2133.3,2.0]
[1617670026696,12.6534,2133.5,2133.4,2.90695]
[1617670027998,9.74645,2133.5,2133.4,2.90695]
[1617670030699,12.6534,2133.5,2133.4,2.90695]
[1617670031600,12.6534,2133.5,2133.3,68.9401]
[1617670032602,12.6534,2133.5,2133.4,2.0]
[1617670032801,12.6534,2133.5,2133.4,4.90695]
[1617670033002,12.6534,2133.5,2133.4,2.0]
[1617670035505,12.6534,2133.5,2132.6,103.2776]
[1617670035707,12.6534,2133.5,2132.7,2.0]
[1617670036908,9.74645,2133.5,2133.3,2.90695]
[1617670037810,9.74645,2133.5,2133.3,4.90695]
[1617670038210,9.74645,2133.5,2133.3,7.04275]
[1617670039410,9.65315,2133.5,2133.3,7.04275]
[1617670039713,9.65315,2133.5,2133.4,76.7145]
[1617670040813,12.5601,2133.5,2133.4,79.62145]
[1617670042014,12.0923,2133.5,2133.4,79.62145]
[1617670042812,12.0923,2133.5,2132.9,0.929]
[1617670043014,14.2466,2133.5,2132.9,0.929]
[1617670044819,11.33965,2133.5,2133.2,2.90695]
[1617670046121,9.18535,2133.5,2133.2,2.90695]
[1617670046918,2.90695,2133.3,2133.2,2.90695]
[1617670048321,2.90695,2133.3,2132.9,0.9356]
[1617670048920,2.90695,2133.0,2132.9,3.84255]
[1617670049121,4.63985,2133.0,2132.9,3.84255]
[1617670050024,75.58625,2133.0,2132.9,3.84255]
[1617670050222,75.58625,2133.0,2132.9,0.9356]
[1617670051024,72.6793,2133.0,2132.8,2.90695]
[1617670051927,1.7329,2133.0,2132.8,2.90695]
[1617670052428,73.7218,2133.4,2132.8,2.90695]
[1617670053029,73.7218,2133.4,2133.2,2.90695]
[1617670053233,73.7218,2133.4,2132.9,0.9351]
[1617670053430,73.7218,2133.4,2132.5,0.9271]
[1617670054133,73.7218,2133.4,2132.4,80.7228]
[1617670054933,73.7218,2133.4,2132.5,2.90695]
[1617670055434,0.02760066,2133.3,2132.5,2.90695]
[1617670056855,0.02760066,2133.3,2132.5,4.90695]
[1617670057055,0.02760066,2133.3,2133.2,2.90695]
[1617670057356,9.21294897,2133.5,2133.2,2.90695]
[1617670057534,9.18535,2133.5,2133.2,2.90695]
[1617670059539,9.18535,2133.5,2133.3,2.0]
[1617670059741,9.18535,2133.5,2133.2,2.90695]
[1617670060641,8.71245,2133.5,2133.2,2.90695]
[1617670060842,8.71245,2133.5,2133.2,4.90695]
[1617670061143,2.90695,2133.4,2133.2,4.90695]
[1617670065647,4.79025,2133.4,2133.2,2.0]
[1617670065849,4.79025,2133.4,2133.1,2.0]
[1617670066249,4.79025,2133.4,2133.0,0.9369]
[1617670066650,4.79025,2133.4,2132.4,2.0]
[1617670067150,1.91090802,2133.4,2132.6,2.90695]
[1617670067349,0.02760778,2133.3,2132.6,2.90695]
[1617670069151,2.90695,2132.7,2132.6,2.90695]
[1617670072055,77.28645317,2133.5,2132.6,2.90695]
[1617670072255,77.28645317,2133.5,2132.6,5.28155]
[1617670072755,77.28645317,2133.5,2132.6,35.28155]
[1617670072956,8.74005317,2133.5,2132.6,35.28155]
[1617670073160,8.74005317,2133.5,2133.4,2.90695]
[1617670073358,8.48985317,2133.5,2133.4,3.84275]
[1617670073559,8.37185,2133.5,2133.4,3.84275]
[1617670073958,8.37185,2133.5,2133.4,2.90695]
[1617670075058,11.2788,2133.5,2133.4,2.90695]
[1617670075359,11.2788,2133.5,2132.8,2.0]
[1617670076359,11.30640218,2133.5,2132.8,2.0]
[1617670077059,2.90695,2132.9,2132.8,4.90695]
[1617670077259,2.40815,2132.9,2132.8,4.90695]
[1617670077860,4.76895,2132.9,2132.8,4.90695]
[1617670080062,4.76895,2132.9,2132.8,2.90695]
[1617670081169,4.76895,2132.9,2132.5,72.7668]
[1617670081369,4.76895,2132.9,2132.4,2.90695]
[1617670081574,4.76895,2132.9,2131.8,32.9315]
[1617670081575,67.2469,2132.8,2131.8,32.9315]
[1617670083272,2.38841366,2132.9,2131.9,2.90695]
[1617670083475,2.38841366,2132.9,2131.8,81.3706]
[1617670083880,2.38841366,2132.9,2131.7,2.0]
[1617670084076,75.0857,2132.6,2131.7,2.0]
[1617670085079,2.90695,2131.8,2131.7,2.0]
[1617670085278,5.69925,2131.8,2131.7,2.0]
[1617670086081,5.69925,2131.8,2131.7,2.9297]
[1617670086279,4.99365,2131.8,2131.7,2.9297]
[1617670086678,4.99365,2131.8,2131.7,2.0]
[1617670086879,4.99365,2131.8,2131.5,2.0]
[1617670087179,4.99365,2131.8,2131.7,2.90695]
[1617670087483,5e-05,2131.8,2131.7,2.90695]
[1617670089180,2.907,2131.8,2131.7,2.90695]
[1617670097589,58.349,2131.7,2130.3,54.4547]
[1617670099191,58.349,2131.7,2131.3,2.90695]
[1617670101195,2.90695,2131.4,2131.3,2.90695]
[1617670105802,2.90695,2131.4,2130.3,54.4547]
[1617670106802,32.90695,2131.4,2130.3,54.4547]
[1617670107203,30.0,2131.4,2130.4,2.90695]
[1617670109123,58.349,2131.7,2130.4,2.90695]
[1617670109305,2.90695,2131.0,2130.8,2.90695]
[1617670110306,2.90695,2131.0,2130.4,0.9349]
[1617670110508,2.90695,2131.0,2130.0,5.0]
[1617670110907,64.8005,2130.6,2130.0,5.0]
[1617670111207,67.4253,2130.6,2130.0,5.0]
[1617670111408,67.4253,2130.6,2130.5,2.90695]
[1617670112709,64.8005,2130.6,2130.5,2.90695]
[1617670113210,30.0,2131.6,2130.5,2.90695]
[1617670113509,30.0,2131.6,2130.1,2.0]
[1617670113510,2.90695,2130.9,2130.1,2.0]
[1617670114910,76.3675,2131.4,2130.1,2.0]
[1617670115120,76.3675,2131.4,2130.1,4.0375]
[1617670115409,30.0,2132.2,2131.3,2.90695]
[1617670116712,61.2333,2132.4,2131.3,2.90695]
[1617670117311,2.90695,2131.4,2131.3,2.90695]
[1617670117512,61.2333,2132.4,2131.3,2.90695]
[1617670117836,30.0,2133.2,2131.3,2.90695]
[1617670118013,92.4179,2133.2,2131.6,72.5935]
[1617670118213,92.4179,2133.2,2131.6,74.5935]
[1617670119115,92.4179,2133.2,2131.6,72.5935]
[1617670119417,92.4179,2133.2,2132.2,2.90695]
[1617670121218,2.0,2133.1,2132.2,2.90695]
[1617670121418,2.90695,2132.3,2132.2,2.90695]
[1617670123220,2.90695,2132.3,2131.6,70.4997]
[1617670123520,1.8062,2132.6,2131.8,2.90695]
[1617670124524,1.8062,2132.6,2131.6,70.4997]
[1617670124722,58.2504,2132.3,2131.2,2.0]
[1617670125323,2.90695,2131.3,2131.2,2.0]
[1617670126627,2.6856,2131.9,2131.2,2.0]
[1617670126833,58.2504,2132.3,2131.2,2.0]
[1617670127032,58.2504,2132.3,2131.2,3.9629]
[1617670127530,58.2504,2132.3,2131.7,5.45215]
[1617670129332,2.90695,2131.8,2131.7,5.45215]
[1617670130532,2.90695,2131.8,2131.7,2.5452]
[1617670130732,2.90695,2131.8,2131.2,1.9629]
[1617670130932,2.90695,2131.8,2130.9,32.0]
[1617670131532,58.2504,2132.3,2131.6,2.90695]
[1617670133438,2.90695,2131.7,2131.6,2.90695]
[1617670135141,2.90695,2131.7,2131.6,3.83195]
[1617670135943,2.90695,2131.7,2131.6,2.90695]
[1617670136545,2.90695,2131.7,2130.9,32.0]
[1617670137548,2.7233,2131.9,2131.4,2.90695]
[1617670139248,2.7233,2131.9,2130.9,32.0]
[1617670139448,2.90695,2131.5,2131.1,3.85445]
[1617670139649,2.90695,2131.5,2131.1,2.90695]
[1617670140349,2.90695,2131.5,2130.9,32.0]
[1617670140549,2.90695,2131.5,2130.9,2.0]
[1617670141453,2.90695,2131.2,2130.9,4.90695]
[1617670144352,2.90695,2131.2,2130.9,34.90695]
[1617670148053,2.17005,2131.2,2130.9,34.90695]
[1617670148552,2.02625,2131.2,2130.9,34.90695]
[1617670149953,2.02625,2131.2,2131.1,65.1774]
[1617670150156,2.02625,2131.2,2131.1,64.2268]
[1617670150554,2.02625,2131.2,2130.9,34.90695]
[1617670154358,73.2193,2131.4,2130.9,34.90695]
[1617670155659,73.2193,2131.4,2131.3,2.90695]
[1617670158563,2.90695,2131.6,2131.3,2.90695]
[1617670164068,0.48115,2131.6,2131.3,5.42265]
[1617670165670,0.48115,2131.6,2131.5,66.3724]
[1617670165969,0.89115,2131.6,2131.5,66.3724]
[1617670168272,0.89115,2131.6,2131.3,2.90695]
[1617670169375,0.89115,2131.6,2131.3,3.84445]
[1617670169772,0.89115,2131.6,2131.3,2.90695]
[1617670170373,0.41,2131.6,2131.4,30.0]
[1617670170574,0.41,2131.6,2131.4,32.4542]
[1617670170775,0.02760967,2132.4,2131.4,32.4542]
[1617670170974,0.02760967,2132.4,2131.9,80.3537]
[1617670171473,0.02760899,2132.5,2131.9,80.3537]
[1617670171674,2.93455899,2132.5,2132.4,2.90695]
[1617670172376,2.90695,2132.5,2132.4,2.90695]
[1617670173677,2.90695,2132.5,2132.3,2.90695]
[1617670177080,2.9345538,2132.5,2132.3,2.90695]
[1617670177480,2.90695,2132.5,2132.3,2.90695]
[1617670178383,2.93456123,2132.5,2132.3,2.90695]
[1617670178681,2.90695,2132.5,2132.3,2.90695]
[1617670182780,2.90695,2132.5,2132.3,3.84175]
[1617670183584,2.90695,2132.5,2132.3,2.90695]
[1617670184083,2.90695,2132.5,2132.3,5.62705]
[1617670184485,2.90695,2132.5,2132.3,35.62705]
[1617670184784,0.52760721,2133.0,2132.3,38.57075]
[1617670184984,0.52760721,2133.0,2132.6,58.8194]
[1617670185385,0.5,2133.0,2132.6,58.8194]
[1617670185785,0.5,2133.0,2132.8,2.90695]
[1617670187586,0.5,2133.0,2132.8,5.44535]
[1617670187887,2.90695,2132.9,2132.8,5.44535]
[1617670188689,0.5,2133.0,2132.8,35.44535]
[1617670188915,8.42698544,2133.5,2132.9,75.8857]
[1617670188916,8.39941682,2133.5,2132.9,75.8857]
[1617670189185,8.39941682,2133.5,2133.0,30.0]
[1617670189687,8.37185,2133.5,2133.4,2.90695]
[1617670189914,8.37185,2133.5,2133.4,5.54965]
[1617670190448,7.18835,2133.5,2133.4,35.54965]
[1617670190593,0.02755252,2133.9,2133.5,71.1176]
[1617670190788,0.02755252,2133.9,2133.6,30.0]
[1617670190988,0.02755081,2134.3,2133.6,30.0]
[1617670191190,1.62e-06,2134.4,2133.6,30.0]
[1617670191393,0.05509646,2134.5,2133.6,30.0]
[1617670191690,0.44075259,2134.9,2133.7,2.0]
[1617670191890,3.34770259,2134.9,2134.4,2.90695]
[1617670192093,2.90695,2134.9,2134.5,66.5567]
[1617670192493,2.90695,2134.9,2134.4,2.90695]
[1617670192695,68.34265,2134.9,2134.4,2.90695]
[1617670192894,68.34265,2134.9,2134.4,3.84175]
[1617670193393,68.78341047,2134.9,2134.4,3.84175]
[1617670193797,2.90695,2134.5,2134.4,3.84175]
[1617670194896,2.90695,2134.5,2133.5,0.9461]
[1617670195095,55.2496,2134.4,2133.5,0.9461]
[1617670195296,55.2496,2134.4,2133.0,0.9358]
[1617670195796,2.90695,2133.9,2133.7,2.90695]
[1617670195996,55.69044723,2134.4,2133.7,2.90695]
[1617670196298,55.2496,2134.4,2133.7,2.90695]
[1617670196697,2.43977944,2135.1,2133.7,2.90695]
[1617670196897,70.9507,2135.0,2133.7,63.56045]
[1617670197096,71.39046182,2135.0,2133.7,63.56045]
[1617670197900,70.9507,2135.0,2133.7,60.6535]
[1617670199100,0.41,2133.9,2133.7,60.6535]
[1617670199601,0.41,2133.9,2133.1,30.0]
[1617670199801,0.41,2133.9,2133.3,2.90695]
[1617670200303,69.0842,2133.4,2132.2,32.0]
[1617670200502,71.7567,2133.4,2132.2,32.0]
[1617670201810,71.7567,2133.4,2133.1,2.90695]
[1617670203007,0.41,2133.9,2133.1,2.90695]
[1617670203805,0.41,2133.9,2133.7,2.90695]
[1617670204408,0.41,2133.9,2133.0,57.0526]
[1617670204605,3.2343,2133.9,2133.0,57.0526]
[1617670205008,3.2343,2133.9,2131.7,30.9274]
[1617670205307,68.4533,2133.5,2131.9,64.4237]
[1617670206010,68.4533,2133.5,2132.7,2.90695]
[1617670207811,68.4533,2133.5,2133.2,2.90695]
[1617670208509,3.67481477,2133.9,2133.2,2.90695]
[1617670209211,3.67481477,2133.9,2132.8,78.6156]
[1617670209410,3.2343,2133.9,2132.8,78.6156]
[1617670209611,0.44052958,2133.8,2132.8,78.6156]
[1617670209810,2.90695,2132.9,2132.8,81.52255]
[1617670210010,5.72085,2132.9,2132.8,2.90695]
[1617670210610,5.72085,2132.9,2132.3,63.9982]
[1617670211410,5.72085,2132.9,2132.3,63.0481]
[1617670211914,2.8139,2132.9,2132.6,2.90695]
[1617670213111,53.7714,2133.3,2132.6,2.90695]
[1617670214110,2.90695,2132.8,2132.6,2.90695]
[1617670215712,53.7714,2133.3,2132.6,2.90695]
[1617670216012,53.7714,2133.3,2133.1,2.90695]
[1617670217816,0.85055836,2133.9,2133.1,2.90695]
[1617670218017,0.85055836,2133.9,2133.1,5.23015]
[1617670218018,2.90695,2133.2,2133.1,5.23015]
[1617670218218,77.7239,2133.9,2133.1,5.23015]
[1617670218417,0.41,2133.9,2133.1,5.23015]
[1617670218929,0.44044113,2134.5,2133.3,72.6938]
[1617670219317,77.94996169,2134.7,2133.3,72.6938]
[1617670219318,0.44042252,2134.6,2133.3,72.6938]
[1617670219926,0.44042252,2134.6,2134.0,2.90695]
[1617670220116,0.44042252,2134.6,2134.0,4.90475]
[1617670220417,77.2893,2134.7,2134.0,4.90475]
[1617670220418,77.72969924,2134.7,2134.0,4.90475]
[1617670221219,77.72969924,2134.7,2134.0,1.9978]
[1617670221421,77.72969924,2134.7,2133.3,72.6938]
[1617670221919,0.44039981,2134.6,2133.6,2.90695]
[1617670222519,77.2893,2134.7,2133.6,2.90695]
[1617670222520,0.44041158,2134.5,2133.6,2.90695]
[1617670222921,0.44041324,2134.6,2133.6,2.90695]
[1617670224020,0.44041324,2134.6,2133.9,2.90695]
[1617670224622,0.44041324,2134.6,2133.9,5.25175]
[1617670224821,77.7296047,2134.7,2133.9,5.25175]
[1617670225121,77.2893,2134.7,2133.9,5.25175]
[1617670226021,0.44026034,2135.0,2134.4,2.90695]
[1617670227121,78.6204,2135.2,2134.4,2.90695]
[1617670227522,0.41,2134.6,2134.4,2.90695]
[1617670228022,2.90695,2134.5,2134.0,63.093]
[1617670228224,2.90695,2134.5,2133.9,2.90695]
[1617670228425,53.4394,2134.2,2132.9,75.2259]
[1617670228725,53.4394,2134.2,2132.9,74.2794]
[1617670229626,53.4394,2134.2,2132.9,75.226]
[1617670230130,2.5322,2133.8,2132.9,77.18635]
[1617670231435,53.4394,2134.2,2132.9,77.18635]
[1617670231834,53.4394,2134.2,2133.0,2.0]
[1617670232035,53.4394,2134.2,2134.0,2.90695]
[1617670233136,53.4394,2134.2,2133.2,2.2136]
[1617670234037,53.4394,2134.2,2133.7,2.90695]
[1617670235941,2.90695,2133.8,2133.7,2.90695]
[1617670236641,53.4394,2134.2,2133.7,2.90695]
[1617670238147,53.4394,2134.2,2134.0,2.90695]
[1617670239548,0.41,2134.6,2134.0,2.90695]
[1617670239745,63.0368,2134.6,2134.0,2.90695]
[1617670240145,2.90695,2134.1,2134.0,2.90695]
[1617670240646,2.90695,2134.1,2133.7,63.3104]
[1617670241849,63.0368,2134.6,2133.7,63.3104]
[1617670242050,63.0368,2134.6,2134.0,2.90695]
[1617670243955,2.90695,2134.1,2134.0,2.90695]
[1617670245161,5.44735,2134.1,2134.0,2.90695]
[1617670246365,2.90695,2134.1,2134.0,2.90695]
[1617670250065,2.90695,2134.1,2134.0,4.90695]
[1617670250877,63.0368,2134.6,2134.0,4.90695]
[1617670251365,0.41,2134.6,2134.0,4.90695]
[1617670251564,0.41,2134.6,2134.3,69.0001]
[1617670251964,0.41,2134.6,2134.3,71.0001]
[1617670252165,0.41,2134.6,2134.5,2.90695]
[1617670253867,0.41,2134.6,2134.5,5.45605]
[1617670256274,0.41,2134.6,2134.5,7.45605]
[1617670256476,0.41,2134.6,2134.5,37.45605]
[1617670256675,0.0001,2134.6,2134.5,37.45605]
[1617670259178,5e-05,2135.6,2134.7,2.0]
[1617670259379,5e-05,2135.6,2134.9,2.0]
[1617670259579,5e-05,2135.6,2135.1,2.0]
[1617670259780,5e-05,2135.6,2135.3,2.0]
[1617670259980,5e-05,2135.6,2135.5,2.0]
[1617670260280,5e-05,2135.6,2135.5,37.43445]
[1617670261582,0.43955294,2137.1,2136.0,69.1993]
[1617670261782,32.0,2138.2,2136.0,71.0305]
[1617670261982,2.0,2138.2,2136.0,101.0305]
[1617670262183,2.0,2138.2,2136.6,2.90695]
[1617670262384,2.0,2138.2,2136.6,5.74325]
[1617670262784,2.0,2138.2,2136.8,56.5393]
[1617670264085,2.90695,2136.9,2136.4,2.90695]
[1617670264285,5.52685,2136.9,2136.4,2.90695]
[1617670266188,2.90695,2136.5,2136.4,2.90695]
[1617670271393,78.1728,2137.3,2136.4,2.90695]
[1617670271995,0.41,2137.8,2136.4,2.90695]
[1617670272195,2.90695,2136.5,2136.4,2.90695]
[1617670272897,4.67935,2136.5,2136.4,2.90695]
[1617670273109,4.67935,2136.5,2135.7,30.0]
[1617670273798,4.67935,2136.5,2135.4,0.9351]
[1617670274199,1.7724,2136.5,2136.0,2.90695]
[1617670276314,2.90695,2136.1,2135.3,64.0677]
[1617670277118,2.90695,2136.1,2135.0,30.0]
[1617670277319,58.3029,2135.9,2135.0,30.0]
[1617670277501,2.7131,2135.9,2134.3,2.0]
[1617670277702,2.7131,2135.9,2134.5,76.4719]
[1617670278102,2.7131,2135.9,2135.0,2.90695]
[1617670280109,2.7131,2135.9,2135.3,2.90695]
[1617670282116,2.90695,2135.4,2135.3,2.90695]
[1617670284521,2.90695,2135.4,2134.6,30.0]
[1617670284820,74.4464,2135.2,2133.9,30.0]
[1617670285223,74.4464,2135.2,2134.0,2.0]
[1617670286222,74.4464,2135.2,2134.5,2.90695]
[1617670287625,65.5002,2135.8,2134.5,5.09355]
[1617670288324,65.5002,2135.8,2135.0,2.90695]
[1617670289225,65.5002,2135.8,2134.5,2.1866]
[1617670289426,65.5002,2135.8,2134.3,83.2223]
[1617670290328,65.5002,2135.8,2134.6,2.90695]
[1617670292428,2.90695,2134.7,2134.6,2.90695]
[1617670295632,65.5002,2135.8,2134.6,2.90695]
[1617670296234,65.5002,2135.8,2135.1,2.90695]
[1617670296733,65.5002,2135.8,2134.3,53.2223]
[1617670298336,65.5002,2135.8,2135.0,2.90695]
[1617670300338,2.90695,2135.1,2135.0,2.90695]
[1617670300856,2.90695,2135.1,2135.0,59.31705]
[1617670303262,60.4635,2136.4,2135.0,59.31705]
[1617670303463,60.4635,2136.4,2135.0,61.29675]
[1617670304443,60.4635,2136.4,2135.5,2.90695]
[1617670304643,60.4635,2136.4,2135.0,56.4101]
[1617670304844,2.0,2136.3,2135.0,56.4101]
[1617670305648,2.4386581,2136.3,2135.0,56.4101]
[1617670306346,2.90695,2135.1,2134.8,2.90695]
[1617670307249,3.31695,2135.1,2134.8,2.90695]
[1617670312859,5.20145,2135.1,2134.3,72.1156]
[1617670313860,10.0,2135.0,2134.3,72.1156]
[1617670314359,10.0,2135.0,2134.2,2.0]
[1617670314559,66.0395,2134.8,2134.6,2.90695]
[1617670314859,66.0395,2134.8,2133.4,2.0]
[1617670316566,66.0395,2134.8,2134.2,2.90695]
[1617670318467,2.90695,2134.3,2134.2,2.90695]
[1617670324975,10.0,2135.0,2134.2,5.00815]
[1617670325174,10.0,2135.0,2134.3,2.0]
[1617670326475,10.0,2135.0,2134.6,2.90695]
[1617670328177,10.0,2135.0,2134.1,53.1548]
[1617670328678,2.90695,2134.2,2134.1,53.1548]
[1617670328876,2.90695,2134.2,2134.0,2.90695]
[1617670333587,5.59945,2134.2,2134.0,2.90695]
[1617670335186,5.59945,2134.2,2133.4,56.5827]
[1617670336488,7.59945,2134.2,2133.4,56.5827]
[1617670336689,2.90695,2133.5,2133.4,56.5827]
[1617670338690,2.90695,2133.5,2133.4,59.48965]
[1617670338892,74.5767,2134.5,2133.4,59.48965]
[1617670339490,76.5767,2134.5,2133.4,59.48965]
[1617670339695,76.5767,2134.5,2133.4,56.5827]
[1617670340595,2.90695,2133.5,2133.4,59.48965]
[1617670343097,2.90695,2133.5,2132.6,32.0]
[1617670343297,2.90695,2133.5,2132.6,93.6692]
[1617670344700,71.6952,2133.7,2133.2,2.90695]
[1617670346704,2.90695,2133.3,2133.2,2.90695]
[1617670349907,2.90695,2133.3,2131.9,30.0]
[1617670350109,60.888,2132.7,2131.9,30.0]
[1617670350810,60.888,2132.7,2132.4,2.90695]
[1617670352712,2.90695,2132.5,2132.4,2.90695]
[1617670355317,2.90695,2132.5,2131.5,5.098]
[1617670355515,70.621,2131.7,2131.5,5.098]
[1617670355714,70.621,2131.7,2130.3,32.9266]
[1617670355715,70.621,2131.7,2130.3,32.0]
[1617670356723,70.621,2131.7,2131.6,2.90695]
[1617670359118,1.7561,2131.7,2131.6,2.90695]
[1617670359428,2.90695,2131.8,2131.6,2.90695]
[1617670359629,12.7526,2134.9,2131.6,2.90695]
[1617670359918,75.6356,2133.6,2132.1,62.118]
[1617670360726,75.6356,2133.6,2132.6,2.90695]
[1617670360931,75.6356,2133.6,2132.6,5.04365]
[1617670361361,105.6356,2133.6,2132.6,5.04365]
[1617670361822,105.6356,2133.6,2132.1,62.118]
[1617670362022,2.0,2133.5,2131.3,2.0]
[1617670362222,62.5912,2132.9,2131.3,2.0]
[1617670362423,65.2261,2132.9,2131.3,2.0]
[1617670362825,2.90695,2132.0,2131.9,2.90695]
[1617670363023,2.3543,2132.3,2131.9,2.90695]
[1617670364727,2.3543,2132.3,2132.2,2.90695]
[1617670365127,2.3543,2132.3,2131.3,2.0]
[1617670366031,2.3543,2132.3,2131.2,74.3982]
[1617670366530,2.3543,2132.3,2131.2,5.098]
[1617670366832,73.3945,2132.0,2131.9,2.90695]
[1617670368132,2.3543,2132.3,2131.9,2.90695]
[1617670368346,2.6349,2132.9,2131.9,2.90695]
[1617670368633,68.6407,2132.0,2131.9,2.90695]
[1617670368931,71.54765,2132.0,2131.9,2.90695]
[1617670370234,71.54765,2132.0,2130.6,30.0]
[1617670370839,68.6407,2132.0,2131.4,2.90695]
[1617670372941,5.56605,2131.5,2131.4,2.90695]
[1617670375443,58.2614,2131.4,2130.1,2.0]
[1617670376942,58.2614,2131.4,2131.0,2.90695]
[1617670378943,58.2614,2131.4,2131.3,2.90695]
[1617670381246,61.16835,2131.4,2131.3,2.90695]
[1617670383573,58.2614,2131.4,2131.3,2.90695]
[1617670383748,0.41,2131.4,2131.3,2.90695]
[1617670385254,0.41,2131.4,2131.3,4.90695]
[1617670385448,0.41,2131.4,2131.3,34.90695]
[1617670386955,0.41,2131.4,2131.3,32.90695]
[1617670389753,0.41,2131.4,2131.3,37.49165]
[1617670393058,0.41,2131.4,2131.3,34.90695]
[1617670394760,0.41,2131.4,2131.3,37.36655]
[1617670395262,75.7617,2132.6,2131.3,37.36655]
[1617670397261,75.7617,2132.6,2132.5,2.90695]
[1617670397461,2.90695,2132.8,2132.5,2.90695]
[1617670402081,2.90695,2132.8,2131.8,72.8459]
[1617670402269,5.27885,2132.8,2131.0,0.9448]
[1617670402471,61.0791,2132.4,2130.9,75.8211]
[1617670403070,61.0791,2132.4,2130.9,105.8211]
[1617670403271,61.0791,2132.4,2132.3,2.90695]
[1617670405075,0.5,2133.3,2132.3,2.90695]
[1617670405276,2.90695,2132.8,2132.3,5.05555]
[1617670405972,2.90695,2132.8,2132.3,7.05555]
[1617670406873,2.90695,2132.8,2132.5,78.6203]
[1617670407273,2.90695,2132.8,2132.7,2.90695]
[1617670412479,2.90695,2132.8,2132.7,4.90695]
[1617670413283,3.40695,2133.3,2133.0,2.90695]
[1617670413483,3.40695,2133.3,2133.0,4.77275]
[1617670414783,0.5,2133.3,2133.0,4.77275]
[1617670414983,0.5,2133.3,2133.0,34.77275]
[1617670415184,0.5,2133.3,2133.1,2.0]
[1617670415385,0.5,2133.3,2133.2,32.0]
[1617670417886,74.8469,2133.3,2133.2,32.0]
[1617670418386,74.8469,2133.3,2133.1,30.0]
[1617670419388,77.75385,2133.3,2133.0,2.90695]
[1617670423994,77.75385,2133.3,2132.5,0.4]
[1617670425394,2.90695,2132.6,2132.5,0.4]
[1617670425694,5.71915,2132.6,2132.5,0.4]
[1617670426495,70.20275,2132.6,2132.5,0.4]
[1617670427900,5.71915,2132.6,2132.5,0.4]
[1617670428101,2.90695,2132.6,2132.5,0.4]
[1617670428802,65.8825,2133.1,2132.5,0.4]
[1617670429503,65.8825,2133.1,2132.6,2.90695]
[1617670430103,65.8825,2133.1,2132.5,0.4]
[1617670430403,67.9255,2133.1,2132.5,0.4]
[1617670431403,2.90695,2132.6,2132.5,0.4]
[1617670431603,5.70785,2132.6,2132.5,0.4]
[1617670433804,2.90695,2132.6,2132.5,0.4]
[1617670438320,4.90695,2132.6,2132.5,0.4]
[1617670438520,37.02205,2132.6,2132.5,0.4]
[1617670438720,37.04962542,2132.6,2132.5,0.4]
[1617670439120,37.02205,2132.6,2132.5,0.4]
[1617670439824,37.46334367,2132.6,2132.5,0.4]
[1617670440623,37.02205,2132.6,2132.5,0.4]
[1617670446430,37.02205,2132.6,2131.3,2.90695]
[1617670446630,54.8023,2132.5,2131.3,2.90695]
[1617670446929,2.0,2132.3,2131.3,2.90695]
[1617670447128,0.02757368,2132.0,2131.3,2.90695]
[1617670447428,1.91297368,2132.0,2131.3,2.90695]
[1617670447632,2.90695,2131.4,2131.3,2.90695]
[1617670447830,4.83355,2131.4,2131.3,2.90695]
[1617670448531,82.95235,2131.4,2131.3,2.90695]
[1617670450733,82.95235,2131.4,2130.1,30.0]
[1617670451636,80.0454,2131.4,2131.0,2.90695]
[1617670453646,2.90695,2131.1,2131.0,2.90695]
[1617670468661,2.90695,2131.1,2130.1,0.4]
[1617670468861,63.6883,2130.5,2130.1,0.4]
[1617670469064,65.8161,2130.5,2130.1,0.4]
[1617670469763,68.72305,2130.5,2130.4,2.90695]
[1617670473368,5.03475,2130.5,2130.1,0.4]
[1617670473570,59.1046,2130.4,2130.1,0.4]
[1617670473870,2.90695,2130.2,2130.1,3.30695]
[1617670476800,71.815,2130.9,2130.1,3.30695]
[1617670476994,71.815,2130.9,2130.1,5.46215]
[1617670477202,32.6594534,2132.4,2130.1,5.46215]
[1617670477203,0.0274733,2132.0,2130.1,5.46215]
[1617670477512,1.82954555,2132.8,2130.1,5.46215]
[1617670477514,71.8187,2131.2,2130.1,5.46215]
[1617670477873,71.8187,2131.2,2131.0,5.05365]